Cogmind - Beta 12 @@@ ROGUE MODE // 2023.06.01 @ 03:21:07 Player: Scrof Result: Destroyed by YI-UF0 with YI-UF0's Doublenader Performance ------------- Evolutions (0) 0 Regions Visited (2) 400 Robots Destroyed (8) 40 Value Destroyed (158) 158 Prototype IDs (0) 0 Alien Tech Used (0) 0 Bonus (0) 0 TOTAL SCORE: 598 Bonus ------- None Cogmind --------- Core Integrity 0/250 Matter 268/300 Energy 68/100 System Corruption 0% Temperature Cool (0) Movement Walking (190) Ox1 Location -10/Mines Parts ------- > --- POWER (1) -------- (None) > --- PROPULSION (2) --- Aluminum Leg Aluminum Leg > --- UTILITY (2) ------ Large Storage Unit Seismic Detector > --- WEAPON (2) ------- (None) > --- INVENTORY (15) --- Light Ion Engine Light Ion Engine Aluminum Leg Aluminum Leg Aluminum Leg Wheel Compact Wheel Compact Wheel Large Storage Unit Tractor Beam Peak State ------------ > --- POWER ------------ Light Ion Engine > --- PROPULSION ------- Aluminum Leg Aluminum Leg > --- UTILITY ---------- Large Storage Unit Seismic Detector > --- WEAPON ----------- Medium Laser Assault Rifle > --- INVENTORY -------- Light Ion Engine Light Treads Light Treads Wheel Compact Wheel Compact Wheel Small Storage Unit Medium Storage Unit Large Storage Unit Light Assault Rifle [Rating: 8] Favorites ----------- Power Light Ion Engine Engine Light Ion Engine Propulsion Light Treads Treads Light Treads Leg Aluminum Leg Utility Seismic Detector Device Seismic Detector Storage Large Storage Unit Weapon Medium Laser Energy Gun Medium Laser Ballistic Gun Assault Rifle Build | -11 -10 -10 ------- Run | Jun Mat Min Slots Evolved . | . . . Power . | . . . Propulsion . | . . . Utility . | . . . Weapon . | . . . Parts Attached 22 | 8 10 4 Power 3 | 1 2 . Engine 3 | 1 2 . Core . | . . . Reactor . | . . . Propulsion 9 | 2 5 2 Treads 5 | 2 3 . Leg 4 | . 2 2 Wheel . | . . . Hover . | . . . Flight . | . . . Utility 4 | 2 2 . Device 1 | 1 . . Storage 3 | 1 2 . Processor . | . . . Hackware . | . . . Protection . | . . . Artifact . | . . . Weapon 6 | 3 1 2 Energy Gun 1 | 1 . . Energy Cannon . | . . . Ballistic Gun 5 | 2 1 2 Ballistic Cannon . | . . . Launcher . | . . . Special Weapon . | . . . Impact Weapon . | . . . Slashing Weapon . | . . . Piercing Weapon . | . . . Special Melee Weapon . | . . . Unidentified Prototypes . | . . . Parts Lost 7 | . . 7 Power 1 | . . 1 Propulsion 2 | . . 2 Utility . | . . . Weapon 4 | . . 4 Highest Loss Streak 7 | . . 7 To Critical Strikes . | . . . Average Slot Usage (%) 97 | . 97 98 Engine 13 | . 13 13 Treads 26 | . 24 27 Leg 1 | . 2 . Device 14 | . 14 14 Storage 14 | . 14 14 Energy Gun 13 | . 14 13 Ballistic Gun 14 | . 13 14 Naked Turns . | . . . Heaviest Build 30 | 13 30 30 Greatest Support 40 | 40 40 40 Greatest Overweight (x) 2 | 2 1 1 Average Overweight (x) . | . . . Largest Inventory Capacity 15 | 8 15 15 Average Capacity 13 | 7 14 15 Most Carried 14 | 7 13 14 Average Carried 10 | 4 9 13 Final Capacity 15 | 8 15 15 Final Carried 12 | 7 12 10 Class Distribution -------------------- 100% | Mutant Dominant Class ---------------- Mutant | -10/Materials Mutant | -10/Mines Resources | -11 -10 -10 ----------- Run | Jun Mat Min Matter Collected 458 | 239 186 33 Remotely . | . . . Salvage Created 269 | 18 208 43 Parts 16 | 4 11 1 Haulers Intercepted . | . . . Recyclers Shooed 1 | . 1 . Parts Field Recycled . | . . . Retrieved Matter . | . . . Parts Self-Destructed . | . . . Prevented . | . . . Kills | -11 -10 -10 ------- Run | Jun Mat Min Combat Hostiles Destroyed 6 | . 5 1 Guns 6 | . 5 1 Classes Destroyed 4 | 1 3 . Tunneler 1 | 1 . . Recycler 1 | . 1 . Swarmer 3 | . 3 . Grunt 3 | . 2 1 Best Kill Streak 4 | 1 4 1 Combat Bots Only 3 | . 3 1 Max Kills in Single Turn 2 | 1 2 1 Gunslinging 1 | . 1 . Exploded . | . . . Melee . | . . . Uniques/NPCs Destroyed . | . . . Combat | -11 -10 -10 -------- Run | Jun Mat Min Damage Taken 952 | . 205 747 Core 253 | . 29 224 Absorbed by Shields . | . . . Core Remaining (%) 100 | 100 . . Volleys Fired 32 | 2 13 17 Largest 2 | 2 2 2 Hottest 70 | 70 70 70 Shots Fired 64 | 4 26 34 Gun 64 | 4 26 34 Cannon . | . . . Launcher . | . . . Special . | . . . Kinetic 38 | 2 13 23 Thermal 26 | 2 13 11 Explosive . | . . . Electromagnetic . | . . . Robot Hit Streak 16 | 1 5 16 Robot Miss Streak 3 | 2 2 3 Penetration Max . | . . . Secondary Targets 2 | . 2 . Max Gunslinging Chain 1 | . 1 . Shots Hit Robots 44 | 2 18 24 Core Hits 16 | 1 9 6 Critical Kills . | . . . Critical Parts Destroyed . | . . . Critical Strikes 2 | . 2 . Burn 2 | . 2 . Melee Attacks . | . . . Impact . | . . . Slashing . | . . . Piercing . | . . . Sneak Attacks . | . . . Combat Hostiles . | . . . Follow-up Attacks . | . . . Damage Inflicted 501 | 22 221 258 Guns 501 | 22 221 258 Cannons . | . . . Explosions . | . . . Melee . | . . . Ramming . | . . . Kinetic 300 | 10 119 171 Thermal 201 | 12 102 87 Explosive . | . . . Electromagnetic . | . . . Impact . | . . . Slashing . | . . . Piercing . | . . . Highest Corruption . | . . . Average Corruption . | . . . Corruption Purged . | . . . Corruption Blocked . | . . . Overload Shots . | . . . Overflow Damage . | . . . Projectiles . | . . . Explosions . | . . . Melee . | . . . Knockbacks . | . . . Impact . | . . . Kinetic . | . . . Secondary . | . . . Self-Inflicted Damage . | . . . Shots . | . . . Rammed . | . . . Targets Rammed . | . . . Kicked . | . . . Crushed . | . . . Highest Temperature 255 | 18 54 255 Average Temperature 76 | 10 21 137 Received Heat Transfer 186 | . 30 156 Siege Activations . | . . . Robots Corrupted . | . . . Combat Hostiles . | . . . Parts Fried . | . . . Impact Corruptions . | . . . Robots Melted . | . . . Combat Hostiles . | . . . Parts Melted 1 | . . 1 Heat Transferred 740 | 37 444 259 Parts Sabotaged . | . . . Parts Stolen . | . . . Parts Stripped . | . . . Power Chain Reactions . | . . . Missiles Intercepted . | . . . Alert | -11 -10 -10 ------- Run | Jun Mat Min Peak Influence 93 | 5 93 49 Initial 19 | . 3 19 Average 38 | 2 48 39 Maximum Alert Level . | . . . Low Security (%) 100 | 100 100 100 Level 1 . | . . . Level 2 . | . . . Level 3 . | . . . Level 4 . | . . . Level 5 . | . . . High Security . | . . . Max Security . | . . . Squads Dispatched 1 | . 1 . Investigation . | . . . Extermination . | . . . Reinforcement 1 | . 1 . Assault . | . . . Garrison . | . . . Intercept . | . . . Searches Triggered . | . . . Construction Impeded . | . . . Haulers Reinforced . | . . . Active Scanning Responses . | . . . Cargo Convoy Interrupts . | . . . Stealth | -11 -10 -10 --------- Run | Jun Mat Min Distress Signals 1 | . 1 . Communications Jammed . | . . . Distress Signals . | . . . Times Spotted 12 | . 9 3 Peak Tracking Total 3 | . 3 2 Tactical Retreats . | . . . Traps | -11 -10 -10 ------- Run | Jun Mat Min Traps Triggered 2 | . 2 . Indirectly . | . . . Trap Hack Attempts . | . . . Triggered . | . . . Disarmed . | . . . Reprogrammed . | . . . Reused . | . . . Traps Extracted . | . . . Installed . | . . . Triggered . | . . . Machines | -11 -10 -10 ---------- Run | Jun Mat Min Machines Disabled . | . . . Max in Single Turn . | . . . Machines Repaired . | . . . Machines Sabotaged . | . . . Overloaded Fab Kills . | . . . Hacking | -11 -10 -10 --------- Run | Jun Mat Min Machines Accessed 1 | . 1 . Terminals 1 | . 1 . Fabricators . | . . . Repair Stations . | . . . Recycling Units . | . . . Scanalyzers . | . . . Garrison Access . | . . . Total Hacks 5 | . 5 . Successful 4 | . 4 . Failed 1 | . 1 . Catastrophic 1 | . 1 . Database Lockouts . | . . . Manual 5 | . 5 . Terminals 5 | . 5 . Fabricators . | . . . Repair Stations . | . . . Recycling Units . | . . . Scanalyzers . | . . . Garrison Access . | . . . Terminal Hacks 1 | . 1 . Unreport Threat 1 | . 1 . Fabricator Hacks . | . . . Repair Station Hacks . | . . . Recycling Unit Hacks . | . . . Scanalyzer . | . . . Garrison Access Hacks . | . . . Unauthorized Hacks 3 | . 3 . Terminals 3 | . 3 . Track 1 | . 1 . Assimilate 1 | . 1 . Botnet 1 | . 1 . Fabricators . | . . . Repair Stations . | . . . Recycling Units . | . . . Scanalyzers . | . . . Garrison Access . | . . . Data Cores Recovered . | . . . Used . | . . . Hacking Detections 1 | . 1 . Full Trace Events . | . . . Feedback Events . | . . . Feedback Blocked . | . . . Robot Schematics Acquired . | . . . Robots Built . | . . . Authchips . | . . . Time . | . . . Total Robot Build Rating . | . . . Part Schematics Acquired . | . . . Parts Built . | . . . Authchips . | . . . Time . | . . . Total Part Build Rating . | . . . Parts Repaired . | . . . Time . | . . . Parts Recycled . | . . . Recycled Matter . | . . . Retrieved Matter . | . . . Retrieved Components . | . . . Parts Scanalyzed . | . . . Part Schematics Acquired . | . . . Parts Damaged . | . . . Bothacking | -11 -10 -10 ------------ Run | Jun Mat Min Used RIF Installer . | . . . Robots Hacked . | . . . Non-combat . | . . . Combat . | . . . Robot Hacks Applied . | . . . Relay Couplers Released . | . . . Fabnet Peak Effective % . | . . . Robots Rewired . | . . . Allies Hacked . | . . . Hacks Repelled . | . . . Allies | -11 -10 -10 -------- Run | Jun Mat Min Total Allies . | . . . Largest Group . | . . . Highest-Rated Group . | . . . Highest-Rated Ally . | . . . Total Orders . | . . . Ally Attacks . | . . . Total Damage . | . . . Kills . | . . . Allies Corrupted . | . . . Allies Melted . | . . . Intel | -11 -10 -10 ------- Run | Jun Mat Min Robot Analysis Total . | . . . Derelict Logs Recovered . | . . . Drone Launches . | . . . Drone Recoveries . | . . . Exploration | -11 -10 -10 ------------- Run | Jun Mat Min Turns Passed 745 | 108 320 317 Spaces Moved 380 | 54 162 164 Core 4 | 4 . . Treads 361 | 50 148 163 Legs 15 | . 14 1 Wheels . | . . . Hover . | . . . Flight . | . . . Fastest Speed 50 | 50 120 160 Average Speed 158 | 156 158 160 Slowest Speed 240 | 160 240 190 Overloaded Moves . | . . . Propulsion Burnouts . | . . . Robots Hopped . | . . . Cave-ins Triggered . | . . . Exploration Rate (%) 22 | 5 24 39 Regions Visited 2 Branch Regions 1 Pre-discovered Areas . | . . . Known Exits Taken . | . . . Unknown Exits Taken 2 | 1 1 . Scrap Searched . | . . . Spaces Dug . | . . . Terrain Destroyed . | . . . Melee . | . . . Projectile . | . . . AOE . | . . . Terrain Rammed . | . . . Walls Destroyed . | . . . Machines Disabled . | . . . Actions | -11 -10 -10 --------- Run | Jun Mat Min Total 455 | 70 198 187 Wait 5 | . 5 . Move 378 | 53 161 164 Hop . | . . . Pick Up 16 | 7 7 2 Fast Attach 7 | 7 . . Attach 7 | . 3 4 Detach . | . . . Swap 8 | 1 7 . Drop 2 | . 2 . Fire 32 | 2 13 17 Melee . | . . . Ram . | . . . Kick . | . . . Crush . | . . . Escape Stasis . | . . . Rewire . | . . . Trap . | . . . Miscellaneous . | . . . Route ------- -11/Junkyard -10/Materials (discovered 2 exits: [*Mat] / [*Min]) -10/Mines History --------- Turn | Location | Event 32 | -11/Junkyard | Discovered new exit (range 15) 109 | -11/Junkyard | Entered Materials 268 | -10/Materials | Discovered new exit (range 8) 316 | -10/Materials | Build established: Mutant 335 | -10/Materials | Discovered new exit (range 16) 429 | -10/Materials | Entered Mines 741 | -10/Mines | Core integrity fell below 50% 743 | -10/Mines | Core integrity fell below 20% 746 | -10/Mines | Destroyed by YI-UF0 with YI-UF0's Doublenader Last Messages --------------- GOAL=ESCAPE 00473_ Critical hit (Burn: +37). 00485_ G-34 Mercenary destroyed. 00489_ Critical hit (Burn: +37). 00499_ Particle Gun melted. 00499_ G-47 Trooper destroyed. 00515_ Acquired Aluminum Leg. 00516_ Acquired 33 matter. 00523_ Acquired Aluminum Leg. 00695_ U-05 Engineer lays Concrete. 00698_ The unstable cave ceiling collapses. 00725_ Assault Rifle destroyed. 00725_ Med. Laser destroyed. 00725_ Ion Engine destroyed. 00734_ Lgt. Treads destroyed. 00742_ The unstable cave ceiling collapses. 00742_ Lgt. Assault Rifle destroyed. 00743_ The unstable cave ceiling collapses. 00744_ Lgt. Assault Rifle destroyed. 00745_ The unstable cave ceiling collapses. Map ----- +----------------------------------------------------+ | ?????????????????????????????????????????????????? | | ?????????????????????????????????????????????????? | | ?????????????????????????????????????????????????? | | ?????????????????????????????????????????????????? | | ?????????????????????????????????????????????????? | | ?????????????????????????????????????????????????? | | ????????????????????????? ???????????????????????? | | ???????????????????????*= ???????????????????????? | | ???????????????????????!% ??????????????????????? | | ?????????#???????????? ?????????????????????? | | ???????? #???????????? # ????????????????????? | | ??????? #??????????? ???????????????????? | | ?????? #??????????? % ##????????????????? | | ?????# #?????????? = ??????????????? | | ????# ???????????? ?????????????? | | #### #????????????## ??????????????? | | ## #????????????? g ######?????????? | | #??????????????# ##########? | | #??????????????# #? | | ##???????????##?# ######### #? | | ###?????????? ???# # #???????# #? | | ##????????????"" ???## ##### ##???????# #? | | #?????????????"" ???## #????# #???????# ## | | #????????????"" ???# # ##???# ##???????# | | ????????? ???# ##??# #????????#### | | ## ????? ?# # @ # #### ##??????????? | | ??# ????# #?# ##?????????? | | ??? ?????# #?## ### ##????????? | | ???? ????# #??# # #?# ###??????? | | ????# ?????# #??## ## ### ##?????? | | #????## ?????# ###### ### """ #?????? | | ####??? #?????# #?# ###?# ## """ ##????? | | ##??? #?????#### #?########## ## """ #????? | | ### #??????### #???????# ### ##???? | | ######## ###?????# ####?## #???? | | ## ##????# #?????# #??? | | ## #????# #?????# #??? | | ########### ###### #?????# ## ##??? | | ########## #?????## ##?###???? | | # % #########??????####????????? | | # % ###??????????????????????????? | | ## ##############????????????????????????????? | | ?#######?????????????????????????????????????????? | | ?????????????????????????????????????????????????? | | | | | | | | | | | | | +----------------------------------------------------+ Best States ------------- Heat Dissipation 25 Energy Generation 10 Energy Capacity 250 Matter Stores 300 Matter Capacity 300 Sight Range 16 Terrain Scan Density 10 Evasion (%) 55 Recoil Reduction 2 Item Schematics ----------------- None Robot Schematics ------------------ None Fabricated ------------ Nothing Alien Tech Used ----------------- None Achievements -------------- None Challenges ------------ None Game ------ Seed EnhancedBurstCompressor Manual? 0 Play Time 00:09:29 Cumulative 19.7 hours Start 2023.06.01 @ 03:13:41 End 2023.06.01 @ 03:21:07 Sessions 1 Manual Loads 0 Difficulty Rogue Special Mode None Game No. 11 Rogue 11 Adventurer 0 Explorer 0 Win Type - Total 0 Types 0/0/0/0/0/0/0/0/0 Lore% 18 Gallery% 30 Achievement% 26 Wizard Run 0 Options --------- ASCII 0 Keyboard 1 Movement Numpad Keybinds 0 Fullscreen 2 Font 18/TerminusBold Map View 76x50 Tactical HUD 1 Map Filters NONE Filters NONE Steam 1 RUN: 12f31d20-6a49-43c1-9931-06b2d59bda63